fUST/lending_fUST_20250907
["ID","MTS","AMOUNT","RATE_DAILY","PERIOD"]
[384018168,1757231440307,-151.0,0.00013698,2]
[384018170,1757231440317,-151.0,0.00013698,2]
[384018172,1757231440327,-151.0,0.00013698,2]
[384018173,1757231440336,-162.22799,0.00013698,2]
[384018174,1757231440346,-480.0,0.00013698,2]
[384018175,1757231440356,-480.0,0.00013698,2]
[384018176,1757231440366,-480.0,0.00013698,2]
[384018177,1757231440377,-480.0,0.00013698,2]
[384018178,1757231440387,-480.0,0.00013698,2]
[384018179,1757231440397,-594.31,0.00013698,2]
[384018180,1757231440407,-480.0,0.00013698,2]
[384018181,1757231440417,-151.0,0.00013698,2]
[384018182,1757231440426,-480.0,0.00013698,2]
[384018183,1757231440435,-480.0,0.00013698,2]
[384018184,1757231440445,-480.0,0.00013698,2]
[384018185,1757231440455,-480.0,0.00013698,2]
[384018186,1757231440464,-480.0,0.00013698,2]
[384018187,1757231440474,-480.0,0.00013698,2]
[384018188,1757231440483,-529.57,0.00013698,2]
[384018189,1757231440492,-480.0,0.00013698,2]
[384018190,1757231440502,-483.70607168,0.00013698,2]
[384018191,1757231440511,-480.0,0.00013698,2]
[384018193,1757231440521,-480.0,0.00013698,2]
[384018195,1757231440530,-480.0,0.00013698,2]
[384018197,1757231440539,-151.0,0.00013698,2]
[384018199,1757231440549,-704.34,0.00013698,2]
[384018201,1757231440558,-10.91079478,0.00013698,2]
[384018204,1757231440576,-434.60648948,0.00013698,2]
[384018238,1757231440906,-34.48271574,0.00013698,2]
[384018240,1757231440916,-480.0,0.00013698,2]
[384018242,1757231440926,-151.0,0.00013698,2]
[384018244,1757231440935,-151.0,0.00013698,2]
[384018245,1757231440944,-151.0,0.00013698,2]
[384018247,1757231440953,-151.0,0.00013698,2]
[384018249,1757231440963,-151.0,0.00013698,2]
[384018251,1757231440972,-151.0,0.00013698,2]
[384018253,1757231440983,-151.0,0.00013698,2]
[384018255,1757231440993,-151.0,0.00013698,2]
[384018257,1757231441002,-261.673648,0.00013698,2]
[384018259,1757231441012,-480.0,0.00013698,2]
[384018261,1757231441025,-151.0,0.00013698,2]
[384018263,1757231441035,-480.0,0.00013698,2]
[384018265,1757231441045,-951.65,0.00013698,2]
[384018267,1757231441054,-480.0,0.00013698,2]
[384018269,1757231441063,-480.0,0.00013698,2]
[384018271,1757231441074,-480.0,0.00013698,2]
[384018273,1757231441084,-480.0,0.00013698,2]
[384018275,1757231441093,-937.76,0.00013698,2]
[384018277,1757231441102,-480.0,0.00013698,2]
[384018279,1757231441111,-485.71834751,0.00013698,2]
[384018281,1757231441121,-162.23614522,0.00013698,2]
[384018282,1757231441130,-817.28,0.00013698,2]
[384018284,1757231441141,-480.0,0.00013698,2]
[384018286,1757231441151,-480.0,0.00013698,2]
[384018288,1757231441160,-480.0,0.00013698,2]
[384018290,1757231441169,-480.0,0.00013698,2]
[384018292,1757231441179,-808.58,0.00013698,2]
[384018294,1757231441189,-480.0,0.00013698,2]
[384018296,1757231441199,-480.0,0.00013698,2]
[384018298,1757231441208,-481.30862865,0.00013698,2]
[384018300,1757231441218,-912.66,0.00013698,2]
[384018302,1757231441227,-480.0,0.00013698,2]
[384018304,1757231441237,-480.0,0.00013698,2]
[384018306,1757231441247,-598.51,0.00013698,2]
[384018308,1757231441256,-480.0,0.00013698,2]
[384018309,1757231441266,-480.0,0.00013698,2]
[384018310,1757231441276,-625.74283632,0.00013698,2]
[384018311,1757231441286,-480.0,0.00013698,2]
[384018312,1757231441296,-598.23,0.00013698,2]
[384018313,1757231441306,-480.0,0.00013698,2]
[384018314,1757231441316,-480.0,0.00013698,2]
[384018315,1757231441326,-480.0,0.00013698,2]
[384018316,1757231441335,-480.0,0.00013698,2]
[384018317,1757231441345,-480.0,0.00013698,2]
[384018318,1757231441355,-480.0,0.00013698,2]
[384018319,1757231441364,-1063.85,0.00013698,2]
[384018320,1757231441374,-480.0,0.00013698,2]
[384018321,1757231441384,-482.15955505,0.00013698,2]
[384018322,1757231441393,-341.19013929,0.00013698,2]
[384018323,1757231441403,-480.0,0.00013698,2]
[384018324,1757231441413,-480.0,0.00013698,2]
[384018325,1757231441422,-633.39,0.00013698,2]
[384018326,1757231441432,-480.0,0.00013698,2]
[384018327,1757231441442,-480.0,0.00013698,2]
[384018328,1757231441451,-490.83112263,0.00013698,2]
[384018329,1757231441461,-480.0,0.00013698,2]
[384018331,1757231441471,-480.0,0.00013698,2]
[384018333,1757231441480,-493.48207288,0.00013698,2]
[384018335,1757231441489,-1218.46,0.00013698,2]
[384018337,1757231441499,-480.0,0.00013698,2]
[384018338,1757231441509,-831.31,0.00013698,2]
[384018340,1757231441518,-480.0,0.00013698,2]
[384018342,1757231441527,-480.0,0.00013698,2]
[384018344,1757231441537,-589.11,0.00013698,2]
[384018346,1757231441547,-480.0,0.00013698,2]
[384018348,1757231441556,-480.0,0.00013698,2]
[384018350,1757231441565,-481.60870991,0.00013698,2]
[384018352,1757231441575,-480.0,0.00013698,2]
[384018353,1757231441585,-642.22,0.00013698,2]
[384018365,1757231441679,-480.0,0.00013698,2]
[384018367,1757231441704,-482.48355005,0.00013698,2]
[384018369,1757231441714,-480.0,0.00013698,2]
[384018371,1757231441724,-1046.07,0.00013698,2]
[384018373,1757231441733,-480.0,0.00013698,2]
[384018375,1757231441742,-902.41,0.00013698,2]
[384018377,1757231441751,-154.56733636,0.00013698,2]
[384018379,1757231441761,-480.0,0.00013698,2]
[384018381,1757231441773,-3399.87,0.00013698,2]
[384018383,1757231441783,-9.75027187,0.00013698,2]
[384018386,1757231441807,-207.33961053,0.00013698,2]
[384018388,1757231441816,-480.0,0.00013698,2]
[384018390,1757231441825,-480.0,0.00013698,2]
[384018392,1757231441835,-486.58561573,0.00013698,2]
[384018394,1757231441845,-480.0,0.00013698,2]
[384018396,1757231441855,-847.48,0.00013698,2]
[384018398,1757231441864,-480.0,0.00013698,2]
[384018400,1757231441874,-480.0,0.00013698,2]
[384018402,1757231441884,-151.0,0.00013698,2]
[384018404,1757231441894,-154.538355,0.00013698,2]
[384018406,1757231441903,-480.0,0.00013698,2]
[384018408,1757231441913,-964.23,0.00013698,2]
[384018410,1757231441923,-480.0,0.00013698,2]
[384018412,1757231441932,-583.93,0.00013698,2]
[384018414,1757231441942,-480.0,0.00013698,2]
[384018416,1757231441951,-480.0,0.00013698,2]
[384018418,1757231441960,-480.0,0.00013698,2]
[384018420,1757231441970,-480.0,0.00013698,2]
[384018421,1757231441979,-481.19921792,0.00013698,2]
[384018423,1757231441988,-1444.85,0.00013698,2]
[384018425,1757231441998,-356.8862492,0.00013698,2]
[384018427,1757231442007,-519.42,0.00013698,2]
[384018429,1757231442018,-480.0,0.00013698,2]
[384018431,1757231442029,-1041.62,0.00013698,2]
[384018433,1757231442040,-5678.34,0.00013698,2]
[384018435,1757231442049,-966.31,0.00013698,2]
[384018437,1757231442059,-480.0,0.00013698,2]
[384018439,1757231442068,-480.0,0.00013698,2]
[384018441,1757231442078,-480.0,0.00013698,2]
[384018443,1757231442087,-579.03265243,0.00013698,2]
[384018445,1757231442097,-963.19,0.00013698,2]
[384018447,1757231442107,-480.0,0.00013698,2]
[384018449,1757231442118,-480.0,0.00013698,2]
[384018451,1757231442127,-219.01063362,0.00013698,2]
[384018453,1757231442138,-829.72,0.00013698,2]
[384018455,1757231442147,-602.59,0.00013698,2]
[384018457,1757231442157,-517.52,0.00013698,2]
[384018459,1757231442167,-480.0,0.00013698,2]
[384018461,1757231442176,-480.0,0.00013698,2]
[384018463,1757231442186,-480.0,0.00013698,2]
[384018465,1757231442196,-480.0,0.00013698,2]
[384018467,1757231442205,-151.0,0.00013698,2]
[384018468,1757231442214,-151.0,0.00013698,2]
[384018469,1757231442223,-480.0,0.00013698,2]
[384018470,1757231442233,-480.0,0.00013698,2]
[384018471,1757231442242,-480.0,0.00013698,2]
[384018472,1757231442251,-480.0,0.00013698,2]
[384018473,1757231442260,-28731.61,0.00013698,2]
[384018474,1757231442270,-190.61,0.00013698,2]
[384018475,1757231442279,-480.0,0.00013698,2]
[384018476,1757231442289,-480.0,0.00013698,2]
[384018477,1757231442298,-151.0,0.00013698,2]
[384018478,1757231442306,-480.0,0.00013698,2]
[384018479,1757231442316,-480.0,0.00013698,2]
[384018480,1757231442324,-480.0,0.00013698,2]
[384018481,1757231442333,-151.0,0.00013698,2]
[384018482,1757231442343,-3111.03,0.00013698,2]
[384018483,1757231442352,-480.0,0.00013698,2]
[384018484,1757231442361,-480.0,0.00013698,2]
[384018485,1757231442370,-1148.29,0.00013698,2]
[384018486,1757231442379,-480.0,0.00013698,2]
[384018488,1757231442388,-480.0,0.00013698,2]
[384018490,1757231442398,-1082.38,0.00013698,2]
[384018491,1757231442407,-480.0,0.00013698,2]
[384018493,1757231442417,-601.75679412,0.00013698,2]
[384018494,1757231442426,-480.0,0.00013698,2]
[384018496,1757231442436,-487.66748101,0.00013698,2]
[384018498,1757231442446,-481.32854049,0.00013698,2]
[384018500,1757231442457,-607.16,0.00013698,2]
[384018502,1757231442466,-859.95,0.00013698,2]
[384018504,1757231442475,-486.49815033,0.00013698,2]
[384018506,1757231442485,-480.0,0.00013698,2]
[384018508,1757231442494,-151.895683,0.00013698,2]
[384018510,1757231442504,-480.0,0.00013698,2]
[384018512,1757231442513,-807.82,0.00013698,2]
[384018514,1757231442522,-1890.49,0.00013698,2]
[384018516,1757231442532,-480.0,0.00013698,2]
[384018518,1757231442542,-5165.6,0.00013698,2]
[384018520,1757231442551,-480.0,0.00013698,2]
[384018522,1757231442561,-2117.23,0.00013698,2]
[384018524,1757231442571,-480.0,0.00013698,2]
[384018526,1757231442580,-480.0,0.00013698,2]
[384018528,1757231442590,-480.0,0.00013698,2]
[384018530,1757231442599,-480.0,0.00013698,2]
[384018532,1757231442609,-153.278122,0.00013698,2]
[384018535,1757231442620,-480.0,0.00013698,2]
[384018537,1757231442630,-480.0,0.00013698,2]
[384018538,1757231442639,-480.0,0.00013698,2]
[384018540,1757231442649,-480.0,0.00013698,2]
[384018542,1757231442658,-565.21877005,0.00013698,2]
[384018544,1757231442667,-480.0,0.00013698,2]
[384018546,1757231442676,-151.0,0.00013698,2]
[384018548,1757231442685,-151.0,0.00013698,2]
[384018550,1757231442695,-151.0,0.00013698,2]
[384018552,1757231442704,-480.0,0.00013698,2]
[384018554,1757231442714,-480.0,0.00013698,2]
[384018556,1757231442723,-605.40758822,0.00013698,2]
[384018558,1757231442732,-2279.01,0.00013698,2]
[384018560,1757231442743,-480.0,0.00013698,2]
[384018562,1757231442752,-480.0,0.00013698,2]
[384018564,1757231442761,-1131.76,0.00013698,2]
[384018566,1757231442771,-732.9,0.00013698,2]
[384018568,1757231442781,-501.63,0.00013698,2]
[384018570,1757231442791,-480.0,0.00013698,2]
[384018572,1757231442802,-480.0,0.00013698,2]
[384018574,1757231442811,-850.54,0.00013698,2]
[384018576,1757231442820,-517.98839524,0.00013698,2]
[384018578,1757231442830,-219.051261,0.00013698,2]
[384018580,1757231442840,-480.0,0.00013698,2]
[384018582,1757231442850,-1072.68,0.00013698,2]
[384018584,1757231442859,-480.0,0.00013698,2]
[384018586,1757231442869,-575.42,0.00013698,2]
[384018588,1757231442879,-1135.13,0.00013698,2]
[384018590,1757231442889,-480.0,0.00013698,2]
[384018592,1757231442899,-480.0,0.00013698,2]
[384018594,1757231442909,-199.75724119,0.00013698,2]
[384018596,1757231442919,-480.0,0.00013698,2]
[384018598,1757231442928,-480.0,0.00013698,2]
[384018600,1757231442938,-843.3,0.00013698,2]
[384018602,1757231442948,-480.0,0.00013698,2]
[384018604,1757231442959,-496.06,0.00013698,2]
[384018606,1757231442969,-3260.84,0.00013698,2]
[384018608,1757231442978,-480.0,0.00013698,2]
[384018610,1757231442988,-480.0,0.00013698,2]
[384018612,1757231442997,-480.0,0.00013698,2]
[384018614,1757231443007,-3844.98,0.00013698,2]
[384018616,1757231443020,-480.0,0.00013698,2]
[384018618,1757231443029,-587.93,0.00013698,2]
[384018620,1757231443039,-278.15454315,0.00013698,2]
[384018622,1757231443048,-480.0,0.00013698,2]
[384018624,1757231443058,-1102.1,0.00013698,2]
[384018626,1757231443067,-609.86,0.00013698,2]
[384018628,1757231443076,-480.0,0.00013698,2]
[384018630,1757231443086,-608.86,0.00013698,2]
[384018632,1757231443095,-151.0,0.00013698,2]
[384018634,1757231443106,-151.0,0.00013698,2]
[384018636,1757231443115,-419.7143686,0.00013698,2]
[384018638,1757231443124,-2116.5,0.00013698,2]
[384018640,1757231443134,-1410.56,0.00013698,2]
[384018642,1757231443143,-480.0,0.00013698,2]
[384018644,1757231443153,-11052.59,0.00013698,2]
[384018647,1757231443162,-3306.55,0.00013698,2]
[384018651,1757231443171,-5240.23,0.00013698,2]
[384018653,1757231443180,-480.0,0.00013698,2]
[384018655,1757231443189,-630.71,0.00013698,2]
[384018657,1757231443199,-480.0,0.00013698,2]
[384018659,1757231443208,-480.0,0.00013698,2]
[384018660,1757231443218,-480.0,0.00013698,2]
[384018663,1757231443227,-822.17,0.00013698,2]
[384018664,1757231443237,-480.0,0.00013698,2]
[384018667,1757231443247,-480.0,0.00013698,2]
[384018668,1757231443258,-480.0,0.00013698,2]
[384018670,1757231443267,-480.0,0.00013698,2]
[384018672,1757231443278,-836.59,0.00013698,2]
[384018675,1757231443289,-2339.24,0.00013698,2]
[384018676,1757231443299,-151.0,0.00013698,2]
[384018679,1757231443309,-151.0,0.00013698,2]
[384018680,1757231443319,-613.8,0.00013698,2]
[384018683,1757231443330,-151.0,0.00013698,2]
[384018684,1757231443340,-151.0,0.00013698,2]
[384018686,1757231443349,-151.0,0.00013698,2]
[384018688,1757231443359,-151.0,0.00013698,2]
[384018690,1757231443368,-902.36,0.00013698,2]
[384018692,1757231443377,-151.0,0.00013698,2]
[384018694,1757231443387,-151.0,0.00013698,2]
[384018696,1757231443396,-151.0,0.00013698,2]
[384018698,1757231443405,-252.459974,0.00013698,2]
[384018700,1757231443414,-480.0,0.00013698,2]
[384018702,1757231443423,-480.0,0.00013698,2]
[384018704,1757231443432,-2534.43,0.00013698,2]
[384018706,1757231443442,-387.4999979,0.00013698,2]
[384018708,1757231443451,-480.0,0.00013698,2]
[384018710,1757231443461,-480.0,0.00013698,2]
[384018712,1757231443471,-531.41,0.00013698,2]
[384018714,1757231443480,-685.71,0.00013698,2]
[384018716,1757231443491,-793.83,0.00013698,2]
[384018718,1757231443500,-1544.79,0.00013698,2]
[384018720,1757231443509,-480.0,0.00013698,2]
[384018722,1757231443519,-85.36668426,0.00013698,2]
[384018769,1757231443873,-394.63331574,0.00013698,2]
[384018772,1757231443980,-81.85327822,0.00013698,2]
[384018775,1757231444008,-398.14672178,0.00013698,2]
[384018777,1757231444021,-525.36668426,0.00013698,2]
[384020688,1757232100753,-166.0,0.00013194,2]
[384020689,1757232100779,-300.0,0.00013592,2]
[384020690,1757232100807,-34534.0,0.00013593,2]
[384020691,1757232109412,1472.0,0.00027397,120]
[384020694,1757232212184,200.0,0.00027138,120]
[384020695,1757232271914,200.0,0.00026778,120]
[384020696,1757232332979,200.0,0.0002717,120]
[384020698,1757232364126,26211.54,0.00029014,60]
[384020725,1757232632083,-218.18630338,0.00013185,2]
[384020727,1757232632093,-300.0,0.00013321,2]
[384020729,1757232632104,-1545.89213156,0.00013593,2]
[384020731,1757232632115,-1138.80134258,0.00013593,2]
[384020737,1757232638003,-6163.3827499,0.00013593,2]
[384020738,1757232638013,-300.0,0.00013597,2]
[384020739,1757232638023,-183.34281699,0.00013598,2]
[384020740,1757232638032,-1039.02980606,0.00013598,2]
[384020741,1757232638042,-168.0,0.0001362,2]
[384020742,1757232638051,-2154.0,0.0001369,2]
[384020743,1757232638061,-634.0,0.0001369,2]
[384020744,1757232638071,-409.0,0.0001369,2]
[384020745,1757232638080,-151.0,0.0001369,2]
[384020746,1757232638090,-151.0,0.0001369,2]
[384020747,1757232638100,-151.0,0.0001369,2]
[384020748,1757232638110,-151.0,0.0001369,2]
[384020749,1757232638119,-106.06944504,0.0001369,2]
[384020750,1757232638132,-44.93055496,0.0001369,2]
[384020751,1757232638140,-153.92718546,0.0001369,2]
[384020752,1757232638149,-151.0,0.0001369,2]
[384020753,1757232638158,-500.0,0.00013697,2]
[384020754,1757232638168,-500.0,0.00013697,2]
[384020755,1757232638178,-500.0,0.00013697,2]
[384020756,1757232638189,-500.0,0.00013697,2]
[384020757,1757232638199,-500.0,0.00013697,2]
[384020758,1757232638208,-500.0,0.00013697,2]
[384020759,1757232638218,-500.0,0.00013697,2]
[384020760,1757232638228,-500.0,0.00013697,2]
[384020761,1757232638238,-500.0,0.00013697,2]
[384020762,1757232638247,-500.0,0.00013697,2]
[384020763,1757232638257,-500.0,0.00013697,2]
[384020764,1757232638267,-500.0,0.00013697,2]
[384020765,1757232638276,-500.0,0.00013697,2]
[384020766,1757232638286,-500.0,0.00013697,2]
[384020767,1757232638296,-500.0,0.00013697,2]
[384020768,1757232638305,-500.0,0.00013697,2]
[384020769,1757232638315,-500.0,0.00013697,2]
[384020770,1757232638324,-306.69066806,0.00013697,2]
[384020771,1757232638333,-454.59530209,0.00013697,2]
[384020772,1757232638343,-500.0,0.00013697,2]
[384020773,1757232638352,-339.62310449,0.00013697,2]
[384020774,1757232638362,-204.40256716,0.00013697,2]
[384020775,1757232638371,-471.15566915,0.00013697,2]
[384020776,1757232638381,-500.0,0.00013697,2]
[384020777,1757232638391,-500.0,0.00013697,2]
[384020778,1757232638401,-362.6837811,0.00013697,2]
[384020779,1757232638411,-500.0,0.00013697,2]
[384020780,1757232638421,-7778.1904753,0.00013698,2]
[384020781,1757232638431,-481.45449761,0.00013698,2]
[384020782,1757232638441,-190.13547588,0.00013698,2]
[384020783,1757232638451,-357.09168413,0.00013698,2]
[384020784,1757232638461,-480.0,0.00013698,2]
[384020785,1757232638472,-480.0,0.00013698,2]
[384020786,1757232638482,-578.05,0.00013698,2]
[384020787,1757232638493,-480.0,0.00013698,2]
[384020788,1757232638503,-480.0,0.00013698,2]
[384020789,1757232638512,-544.78617761,0.00013698,2]
[384020790,1757232638522,-480.0,0.00013698,2]
[384020791,1757232638532,-480.0,0.00013698,2]
[384020792,1757232638542,-480.0,0.00013698,2]
[384020793,1757232638553,-481.74542209,0.00013698,2]
[384020794,1757232638564,-480.0,0.00013698,2]
[384020795,1757232638574,-480.0,0.00013698,2]
[384020796,1757232638584,-488.64475511,0.00013698,2]
[384020797,1757232638594,-480.0,0.00013698,2]
[384020798,1757232638603,-480.96517909,0.00013698,2]
[384020799,1757232638613,-480.0,0.00013698,2]
[384020800,1757232638623,-249.13138172,0.00013698,2]
[384020801,1757232638636,-230.86861828,0.00013698,2]
[384020802,1757232638645,-35.93138172,0.00013698,2]
[384020803,1757232638672,-449.19559597,0.00013698,2]
[384020804,1757232638682,-485.79393001,0.00013698,2]
[384020805,1757232638692,-466.22477857,0.00013698,2]
[384020819,1757232640270,-13.77522143,0.00013698,2]
[384020820,1757232640281,-480.0,0.00013698,2]
[384020821,1757232640291,-487.99357225,0.00013698,2]
[384020822,1757232640300,-621.56687067,0.00013698,2]
[384020823,1757232640310,-480.0,0.00013698,2]
[384020824,1757232640320,-487.93175676,0.00013698,2]
[384020825,1757232640331,-894.63,0.00013698,2]
[384020826,1757232640340,-480.0,0.00013698,2]
[384020827,1757232640350,-482.92363488,0.00013698,2]
[384020828,1757232640360,-2723.48,0.00013698,2]
[384020829,1757232640370,-657.14,0.00013698,2]
[384020830,1757232640380,-796.67,0.00013698,2]
[384020831,1757232640390,-593.3,0.00013698,2]
[384020832,1757232640399,-275.20034553,0.00013698,2]
[384020833,1757232640409,-480.0,0.00013698,2]
[384020834,1757232640419,-480.0,0.00013698,2]
[384020835,1757232640429,-480.0,0.00013698,2]
[384020836,1757232640440,-480.0,0.00013698,2]
[384020837,1757232640450,-484.16421708,0.00013698,2]
[384020838,1757232640460,-480.0,0.00013698,2]
[384020839,1757232640470,-481.64264598,0.00013698,2]
[384020840,1757232640480,-105.57222319,0.00013698,2]
[384020841,1757232640498,-509.88777681,0.00013698,2]
[384020842,1757232640508,-480.0,0.00013698,2]
[384020843,1757232640519,-481.25073779,0.00013698,2]
[384020844,1757232640529,-480.0,0.00013698,2]
[384020845,1757232640539,-482.62661809,0.00013698,2]
[384020846,1757232640548,-425.47691589,0.00013698,2]
[384020847,1757232640560,-54.52308411,0.00013698,2]
[384020848,1757232640570,-305.46967273,0.00013698,2]
[384020849,1757232640582,-174.53032727,0.00013698,2]
[384020850,1757232640592,-481.03145468,0.00013698,2]
[384020851,1757232640602,-484.60189186,0.00013698,2]
[384020852,1757232640612,-507.57225043,0.00013698,2]
[384020853,1757232640623,-480.0,0.00013698,2]
[384020854,1757232640632,-480.0,0.00013698,2]
[384020855,1757232640642,-353.64498522,0.00013698,2]
[384020856,1757232643187,-333.05501478,0.00013698,2]
[384020857,1757232643197,-1004.92746409,0.00013698,2]
[384020858,1757232643206,-481.57450116,0.00013698,2]
[384020859,1757232643215,-366.12977554,0.00013698,2]
[384020860,1757232643226,-394.25156681,0.00013698,2]
[384020861,1757232643235,-480.0,0.00013698,2]
[384020862,1757232643246,-480.0,0.00013698,2]
[384020863,1757232643256,-166.0,0.00013698,2]
[384020864,1757232643266,-660.14,0.00013698,2]
[384020865,1757232643275,-549.26948551,0.00013698,2]
[384020866,1757232643285,-447.87908536,0.00013698,2]
[384020867,1757232643295,-480.0,0.00013698,2]
[384020868,1757232643305,-515.89,0.00013698,2]
[384020869,1757232643315,-480.0,0.00013698,2]
[384020870,1757232643324,-423.08649612,0.00013698,2]
[384020871,1757232643333,-298.63563007,0.00013698,2]
[384020872,1757232643343,-480.0,0.00013698,2]
[384020873,1757232643353,-480.0,0.00013698,2]
[384020874,1757232643362,-480.0,0.00013698,2]
[384020875,1757232643373,-480.0,0.00013698,2]
[384020876,1757232643383,-480.0,0.00013698,2]
[384020877,1757232643392,-480.0,0.00013698,2]
[384020878,1757232643401,-480.0,0.00013698,2]
[384020879,1757232643411,-545.82,0.00013698,2]
[384020880,1757232643420,-972.62,0.00013698,2]
[384020881,1757232643430,-480.0,0.00013698,2]
[384020882,1757232643439,-240.91285836,0.00013698,2]
[384020883,1757232643449,-480.0,0.00013698,2]
[384020884,1757232643459,-480.0,0.00013698,2]
[384020885,1757232643468,-481.26164314,0.00013698,2]
[384020886,1757232643477,-481.97630846,0.00013698,2]
[384020887,1757232643487,-480.0,0.00013698,2]
[384020888,1757232643497,-539.59123498,0.00013698,2]
[384020889,1757232643506,-480.0,0.00013698,2]
[384020890,1757232643515,-480.0,0.00013698,2]
[384020891,1757232643524,-151.0,0.00013698,2]
[384020892,1757232643534,-151.0,0.00013698,2]
[384020893,1757232643543,-480.0,0.00013698,2]
[384020894,1757232643552,-485.5223851,0.00013698,2]
[384020895,1757232643562,-569.54,0.00013698,2]
[384020896,1757232643571,-480.0,0.00013698,2]
[384020897,1757232643580,-480.0,0.00013698,2]
[384020898,1757232643590,-384.83179176,0.00013698,2]
[384020899,1757232643599,-480.0,0.00013698,2]
[384020900,1757232643609,-480.0,0.00013698,2]
[384020901,1757232643618,-481.47972172,0.00013698,2]
[384020902,1757232643628,-152.853496,0.00013698,2]
[384020903,1757232643637,-494.49507344,0.00013698,2]
[384020904,1757232643647,-480.0,0.00013698,2]
[384020905,1757232643657,-561.83334966,0.00013698,2]
[384020906,1757232643666,-480.0,0.00013698,2]
[384020907,1757232643676,-480.0,0.00013698,2]
[384020908,1757232643685,-480.0,0.00013698,2]
[384020909,1757232643694,-480.0,0.00013698,2]
[384020910,1757232643704,-480.0,0.00013698,2]
[384020911,1757232643714,-480.0,0.00013698,2]
[384020912,1757232643724,-480.0,0.00013698,2]
[384020913,1757232643734,-675.0,0.00013698,2]
[384020914,1757232643743,-480.0,0.00013698,2]
[384020915,1757232643753,-480.0,0.00013698,2]
[384020916,1757232643763,-480.0,0.00013698,2]
[384020917,1757232643773,-480.0,0.00013698,2]
[384020918,1757232643783,-291.67138078,0.00013698,2]
[384020919,1757232643793,-480.0,0.00013698,2]
[384020920,1757232643803,-507.5,0.00013698,2]
[384020921,1757232643813,-480.0,0.00013698,2]
[384020922,1757232643823,-932.0,0.00013698,2]
[384020923,1757232643832,-484.04534475,0.00013698,2]
[384020924,1757232643842,-480.0,0.00013698,2]
[384020925,1757232643851,-483.5278044,0.00013698,2]
[384020926,1757232643861,-480.0,0.00013698,2]
[384020927,1757232643871,-958.68,0.00013698,2]
[384020928,1757232643882,-480.0,0.00013698,2]
[384020929,1757232643892,-483.48419608,0.00013698,2]
[384020930,1757232643906,-480.0,0.00013698,2]
[384020931,1757232643916,-480.0,0.00013698,2]
[384020932,1757232643928,-484.29402933,0.00013698,2]
[384020933,1757232643938,-483.34238762,0.00013698,2]
[384020934,1757232643948,-803.22,0.00013698,2]
[384020935,1757232643957,-529.26,0.00013698,2]
[384020936,1757232643967,-482.05384837,0.00013698,2]
[384020937,1757232643977,-484.69786999,0.00013698,2]
[384020938,1757232643987,-480.0,0.00013698,2]
[384020939,1757232644002,-483.25347614,0.00013698,2]
[384020940,1757232644012,-604.45,0.00013698,2]
[384020941,1757232644022,-480.0,0.00013698,2]
[384020942,1757232644032,-480.0,0.00013698,2]
[384020943,1757232644042,-500.73,0.00013698,2]
[384020944,1757232644051,-289.37560168,0.00013698,2]
[384020945,1757232644060,-482.25027685,0.00013698,2]